bitfinex/quotes_SOLUSD_20240908
["timestamp","ask_amount","ask_price","bid_price","bid_amount"]
[1725806460281,4.34638951,128.24,128.17,22.2452]
[1725806460579,4.34638951,128.22,128.18,29.81655134]
[1725806462169,4.34638951,128.22,128.19,45.0]
[1725806465865,4.34638951,128.22,128.2,9.81655134]
[1725806474488,4.34638951,128.22,128.19,9.81655134]
[1725806475985,4.34638951,128.24,128.21,9.81655134]
[1725806480708,4.34638951,128.24,128.19,9.81655134]
[1725806480882,7.91605344,128.26,128.19,9.81655134]
[1725806480883,4.34638951,128.22,128.19,9.81655134]
[1725806483392,4.34638951,128.24,128.2,45.0]
[1725806483794,4.34638951,128.22,128.19,9.81655134]
[1725806487419,4.34638951,128.24,128.19,9.81655134]
[1725806492302,4.34638951,128.22,128.19,9.81655134]
[1725806492899,4.34638951,128.24,128.19,9.81655134]
[1725806493199,4.34638951,128.22,128.19,9.81655134]
[1725806493956,6.3612,128.26,128.14,31.33418213]
[1725806493957,4.34638951,128.2,128.14,31.33418213]
[1725806494106,4.34638951,128.2,128.17,9.81655134]
[1725806497884,4.34638951,128.2,128.15,20.0]
[1725806498089,4.34638951,128.2,128.18,9.81655134]
[1725806503732,4.34638951,128.22,128.18,9.81655134]
[1725806503901,4.34638951,128.24,128.21,9.81655134]
[1725806504492,22.1832,128.26,128.18,15.5633]
[1725806504493,10.70758951,128.26,128.23,9.81655134]
[1725806504703,4.34638951,128.26,128.23,9.81655134]
[1725806508430,4.34638951,128.24,128.21,9.81655134]
[1725806511398,4.34638951,128.24,128.22,20.0]
[1725806514809,4.34638951,128.26,128.23,9.81655134]
[1725806515117,4.34638951,128.26,128.22,20.0]
[1725806515321,4.34638951,128.26,128.23,9.81655134]
[1725806519836,4.34638951,128.26,128.25,9.81655134]
[1725806520128,4.34638951,128.28,128.25,9.81655134]
[1725806523514,4.34638951,128.28,128.23,9.81655134]
[1725806523715,4.34638951,128.28,128.24,65.0]
[1725806525346,4.34638951,128.26,128.22,9.81655134]
[1725806525539,4.34638951,128.26,128.23,20.0]
[1725806532651,4.34638951,128.24,128.23,20.0]
[1725806534049,4.34638951,128.26,128.23,20.0]
[1725806535857,4.34638951,128.23,128.18,21.9201]
[1725806536147,4.34638951,128.23,128.21,9.81655134]
[1725806536350,4.34638951,128.23,128.22,20.0]
[1725806538350,4.34638951,128.25,128.22,65.0]
[1725806538559,4.34638951,128.25,128.24,9.81655134]
[1725806542137,4.34638951,128.27,128.24,9.81655134]
[1725806542342,4.34638951,128.27,128.26,9.81655134]
[1725806545745,4.34638951,128.29,128.26,54.81655134]
[1725806545959,4.34638951,128.29,128.26,9.81655134]
[1725806546464,4.34638951,128.29,128.22,87.9454]
[1725806546465,4.34638951,128.27,128.22,87.9454]
[1725806546641,4.34638951,128.27,128.23,45.0]
[1725806546969,4.34638951,128.27,128.25,9.81655134]
[1725806555453,4.34638951,128.29,128.25,9.81655134]
[1725806555651,4.34638951,128.29,128.26,45.0]
[1725806560248,4.34638951,128.29,128.25,9.81655134]
[1725806562777,4.34638951,128.27,128.25,9.81655134]
[1725806574016,4.34638951,128.27,128.22,42.9454]
[1725806574208,4.34638951,128.25,128.23,45.0]
[1725806574397,4.34638951,128.25,128.22,29.81655134]
[1725806574608,4.34638951,128.25,128.19,21.3052]
[1725806574795,4.34638951,128.25,128.22,9.81655134]
[1725806585626,4.34638951,128.23,128.19,15.0904]
[1725806585807,4.34638951,128.23,128.2,20.0]
[1725806586125,4.34638951,128.21,128.2,20.0]
[1725806590768,4.34638951,128.21,128.19,9.81655134]
[1725806591313,4.34638951,128.17,128.13,15.0904]
[1725806591511,4.34638951,128.17,128.16,9.81655134]
[1725806592053,4.34638951,128.19,128.16,9.81655134]
[1725806592325,4.34638951,128.19,128.18,9.81655134]
[1725806592831,4.34638951,128.19,128.18,29.81655134]
[1725806594009,4.34638951,128.19,128.13,15.0904]
[1725806594215,4.34638951,128.19,128.17,9.81655134]
[1725806604236,4.34638951,128.19,128.14,45.0]
[1725806604418,4.34638951,128.19,128.17,9.81655134]
[1725806605716,4.34638951,128.19,128.17,4.30359434]
[1725806608561,4.34638951,128.19,128.15,20.0]
[1725806608749,4.34638951,128.19,128.18,9.81655134]
[1725806623741,4.34638951,128.23,128.18,76.37646413]
[1725806623938,4.34638951,128.23,128.22,9.81655134]
[1725806625249,4.34638951,128.25,128.22,74.81655134]
[1725806625547,4.34638951,128.25,128.23,45.0]
[1725806625722,4.34638951,128.25,128.23,54.81655134]
[1725806625943,4.34638951,128.25,128.23,9.81655134]
[1725806627125,4.34638951,128.25,128.21,16.3394]
[1725806627333,4.34638951,128.23,128.22,20.0]
[1725806632948,4.34638951,128.23,128.21,9.81655134]
[1725806636261,4.34638951,128.21,128.2,9.81655134]
[1725806636557,4.34638951,128.21,128.2,29.81655134]
[1725806648043,4.34638951,128.21,128.2,20.0]
[1725806652656,4.34638951,128.23,128.2,20.0]
[1725806652900,4.34638951,128.23,128.21,11.37634675]
[1725806653178,4.34638951,128.25,128.22,20.0]
[1725806653365,4.34638951,128.25,128.24,9.81655134]
[1725806658457,4.34638951,128.23,128.22,9.81655134]
[1725806658780,4.34638951,128.23,128.22,29.81655134]
[1725806659702,4.34638951,128.25,128.22,29.81655134]
[1725806665381,4.34638951,128.25,128.24,9.81655134]
[1725806665738,4.34638951,128.25,128.24,54.81655134]
[1725806666388,4.34638951,128.27,128.24,54.81655134]
[1725806666582,4.34638951,128.27,128.26,9.81655134]
[1725806667189,4.34638951,128.29,128.26,74.81655134]
[1725806667490,4.34638951,128.29,128.28,9.81655134]
[1725806668950,4.34638951,128.31,128.28,54.81655134]
[1725806668982,4.34638951,128.31,128.28,9.81655134]
[1725806671504,4.34638951,128.31,128.26,65.0]
[1725806671682,4.34638951,128.31,128.27,74.81655134]
[1725806671893,4.34638951,128.29,128.27,74.81655134]
[1725806672175,4.34638951,128.29,128.27,65.0]
[1725806672374,4.34638951,128.29,128.27,20.0]
[1725806676573,4.34638951,128.27,128.24,15.0365]
[1725806676781,4.34638951,128.27,128.25,29.81655134]
[1725806677184,4.34638951,128.29,128.25,29.81655134]
[1725806677475,4.34638951,128.29,128.27,9.81655134]
[1725806690209,4.34638951,128.32,128.28,16.4597]
[1725806690411,4.34638951,128.32,128.31,9.81655134]
[1725806690589,4.34638951,128.32,128.31,74.81655134]
[1725806691810,4.34638951,128.32,128.31,20.0]
[1725806691980,4.34638951,128.3,128.28,26.27625134]
[1725806692179,4.34638951,128.3,128.29,20.0]
[1725806700211,4.34638951,128.28,128.24,15.6011]
[1725806700389,4.34638951,128.26,128.24,25.41765134]
[1725806700602,4.34638951,128.26,128.24,15.6011]
[1725806700795,4.34638951,128.26,128.24,25.41765134]
[1725806701001,4.34638951,128.26,128.24,9.81655134]
[1725806701202,4.34638951,128.22,128.21,15.6011]
[1725806701410,4.34638951,128.22,128.21,25.41765134]
[1725806701604,4.34638951,128.22,128.21,9.81655134]
[1725806702521,4.34638951,128.22,128.19,6.1553]
[1725806702693,4.34638951,128.22,128.18,15.6011]
[1725806702694,4.34638951,128.22,128.21,9.81655134]
[1725806703106,4.34638951,128.22,128.21,29.81655134]
[1725806703324,4.34638951,128.2,128.18,15.6011]
[1725806703495,4.34638951,128.2,128.19,9.81655134]
[1725806705506,4.34638951,128.2,128.19,29.81655134]
[1725806711088,4.34638951,128.22,128.19,74.81655134]
[1725806711333,4.34638951,128.22,128.21,9.81655134]
[1725806711832,4.34638951,128.24,128.21,74.81655134]
[1725806712130,4.34638951,128.24,128.23,9.81655134]
[1725806713612,4.34638951,128.26,128.23,74.81655134]
[1725806713812,4.34638951,128.26,128.25,9.81655134]
[1725806716331,4.34638951,128.26,128.23,20.0]
[1725806716534,4.34638951,128.24,128.23,9.81655134]
[1725806716826,4.34638951,128.24,128.23,54.81655134]
[1725806717137,4.34638951,128.24,128.23,74.81655134]
[1725806718435,4.34638951,128.24,128.23,29.81655134]
[1725806718731,4.34638951,128.22,128.21,9.81655134]
[1725806722743,4.34638951,128.22,128.18,15.6011]
[1725806723035,4.34638951,128.2,128.19,29.81655134]
[1725806743157,4.34638951,128.18,128.15,16.5666]
[1725806743345,4.34638951,128.18,128.17,9.81655134]
[1725806743534,4.34638951,128.18,128.17,29.81655134]
[1725806744651,23.87065344,128.25,128.17,29.81655134]
[1725806744652,4.34638951,128.2,128.17,29.81655134]
[1725806744906,4.34638951,128.2,128.19,9.81655134]
[1725806745053,4.34638951,128.2,128.19,54.81655134]
[1725806750943,4.34638951,128.2,128.17,20.0]
[1725806751374,4.34638951,128.2,128.15,16.5666]
[1725806751375,4.34638951,128.2,128.19,9.81655134]
[1725806752161,4.34638951,128.2,128.18,45.0]
[1725806752365,4.34638951,128.2,128.18,9.81655134]
[1725806753344,4.34638951,128.18,128.16,20.0]
[1725806753545,4.34638951,128.18,128.17,9.81655134]
[1725806754065,4.34638951,128.18,128.17,29.81655134]
[1725806755067,4.34638951,128.2,128.17,29.81655134]
[1725806755263,4.34638951,128.2,128.19,9.81655134]
[1725806758254,4.34638951,128.2,128.17,20.0]
[1725806758460,4.34638951,128.2,128.18,9.81655134]
[1725806762070,4.34638951,128.2,128.19,45.0]
[1725806762280,4.34638951,128.2,128.19,65.0]
[1725806762451,4.34638951,128.2,128.19,54.81655134]
[1725806762653,4.34638951,128.2,128.19,74.81655134]
[1725806765092,4.34638951,128.2,128.19,20.0]
[1725806765374,4.34638951,128.2,128.18,9.81655134]
[1725806765555,4.34638951,128.2,128.19,20.0]
[1725806766693,4.34638951,128.2,128.19,65.0]
[1725806769189,4.34638951,128.22,128.19,65.0]
[1725806769483,4.34638951,128.22,128.21,9.81655134]
[1725806770783,4.34638951,128.22,128.21,74.81655134]
[1725806773004,4.34638951,128.22,128.21,65.0]
[1725806773196,4.34638951,128.22,128.21,74.81655134]
[1725806773780,4.34638951,128.22,128.21,54.81655134]
[1725806773972,4.34638951,128.22,128.21,74.81655134]
[1725806776300,4.34638951,128.24,128.21,74.81655134]
[1725806776517,4.34638951,128.24,128.23,9.81655134]
[1725806777786,4.34638951,128.22,128.21,20.0]
[1725806778106,4.34638951,128.22,128.2,29.81655134]
[1725806786014,4.34638951,128.22,128.2,20.0]
[1725806786297,4.34638951,128.22,128.21,9.81655134]
[1725806786495,4.34638951,128.22,128.21,29.81655134]
[1725806792810,4.34638951,128.28,128.21,90.79435134]
[1725806793101,4.34638951,128.28,128.27,9.81655134]
[1725806793623,4.34638951,128.28,128.27,29.81655134]
[1725806793907,4.34638951,128.28,128.27,74.81655134]
[1725806794995,4.34638951,128.28,128.27,29.81655134]
[1725806798397,4.34638951,128.28,128.27,9.81655134]
[1725806798713,4.34638951,128.28,128.27,74.81655134]
[1725806799591,4.34638951,128.3,128.27,74.81655134]
[1725806799791,4.34638951,128.3,128.29,9.81655134]
[1725806801850,4.34638951,128.28,128.27,29.81655134]
[1725806810791,4.34638951,128.28,128.27,74.81655134]
[1725806816811,4.34638951,128.3,128.27,74.81655134]
[1725806817017,4.34638951,128.3,128.29,9.81655134]
[1725806819217,4.34638951,128.3,128.29,29.81655134]
[1725806819419,4.34638951,128.32,128.29,74.81655134]
[1725806819617,4.34638951,128.32,128.31,9.81655134]
[1725806819825,4.34638951,128.32,128.31,54.81655134]
[1725806820019,4.34638951,128.32,128.31,74.81655134]
[1725806821511,4.34638951,128.32,128.31,29.81655134]
[1725806821695,4.34638951,128.32,128.31,20.0]
[1725806821901,4.34638951,128.32,128.24,6.6604]
[1725806821902,4.34638951,128.28,128.25,16.4529]
[1725806822116,4.34638951,128.28,128.27,9.81655134]
[1725806823108,4.34638951,128.28,128.27,29.81655134]
[1725806823337,4.34638951,128.28,128.27,74.81655134]
[1725806823565,4.34638951,128.28,128.27,29.81655134]
[1725806825225,4.34638951,128.28,128.27,74.81655134]
[1725806826825,4.34638951,128.3,128.27,74.81655134]
[1725806827122,4.34638951,128.3,128.29,9.81655134]
[1725806829293,16.1317,128.35,128.29,29.81655134]
[1725806829294,4.34638951,128.32,128.29,29.81655134]
[1725806829444,4.34638951,128.32,128.31,9.81655134]
[1725806830001,4.34638951,128.32,128.31,54.81655134]
[1725806830145,4.34638951,128.32,128.31,74.81655134]
[1725806830535,2.30898951,128.32,128.31,74.81655134]
[1725806830545,16.1317,128.38,128.31,74.81655134]
[1725806830714,16.1317,128.38,128.35,9.81655134]
[1725806831272,6.4428,128.39,128.32,45.0]
[1725806831273,6.4428,128.39,128.37,9.81655134]
[1725806831496,34.20524553,128.41,128.37,9.81655134]
[1725806835913,35.76009897,128.41,128.33,9.81655134]
[1725806836109,41.99009897,128.41,128.33,9.81655134]
[1725806836830,45.0,128.4,128.33,9.81655134]
[1725806837029,1.55485344,128.39,128.33,9.81655134]
[1725806841263,39.5917,128.42,128.37,9.81655134]
[1725806841264,16.1317,128.42,128.37,9.81655134]
[1725806841852,1.55485344,128.41,128.35,9.81655134]
[1725806842951,25.01485344,128.41,128.35,9.81655134]
[1725806843271,1.55485344,128.41,128.35,9.81655134]
[1725806846264,1.55485344,128.41,128.34,9.81655134]
[1725806852989,25.01485344,128.41,128.34,9.81655134]
[1725806853249,1.55485344,128.41,128.34,9.81655134]
[1725806854760,17.68655344,128.42,128.34,9.81655134]
[1725806855349,23.91615344,128.42,128.34,9.81655134]
[1725806855516,45.0,128.41,128.34,9.81655134]
[1725806855721,1.55485344,128.4,128.34,9.81655134]
[1725806855921,1.55485344,128.39,128.34,9.81655134]
[1725806856826,1.55485344,128.39,128.29,16.4529]
[1725806856827,17.10885344,128.38,128.29,16.4529]
[1725806857028,15.554,128.38,128.32,9.81655134]
[1725806857224,15.554,128.38,128.34,9.81655134]
[1725806860077,15.554,128.38,128.33,9.81655134]
[1725806860371,15.554,128.38,128.3,20.0]
[1725806860549,1.55485344,128.37,128.33,9.81655134]
[1725806860751,15.554,128.38,128.33,9.81655134]
[1725806862553,17.10885344,128.38,128.33,9.81655134]
[1725806862747,15.554,128.38,128.33,9.81655134]
[1725806863842,15.554,128.38,128.35,9.81655134]
[1725806864739,6.1124,128.39,128.35,9.81655134]
[1725806865147,6.1124,128.39,128.37,9.81655134]
[1725806865340,15.554,128.41,128.37,9.81655134]
[1725806866353,21.6664,128.44,128.37,9.81655134]
[1725806867354,1.55485344,128.43,128.37,9.81655134]
[1725806867577,23.22125344,128.44,128.37,9.81655134]
[1725806868563,21.6664,128.44,128.37,9.81655134]
[1725806869549,21.6664,128.44,128.39,9.81655134]
[1725806872096,25.2853505,128.46,128.41,9.81655134]
[1725806873057,21.6664,128.47,128.41,9.81655134]
[1725806873575,21.6664,128.47,128.34,16.3661]
[1725806873576,1.55485344,128.46,128.39,9.81655134]
[1725806873865,23.22125344,128.47,128.4,20.0]
[1725806874050,21.6664,128.47,128.41,9.81655134]
[1725806878455,1.55485344,128.46,128.41,9.81655134]
[1725806878944,21.6664,128.47,128.41,9.81655134]
[1725806879973,52.1145979,128.5,128.41,9.81655134]
[1725806880270,45.0,128.49,128.41,9.81655134]
[1725806880471,22.246,128.5,128.43,9.81655134]
[1725806881182,6.2247,128.52,128.44,15.8452]
[1725806881480,1.55485344,128.51,128.45,9.81655134]
[1725806881699,7.78005344,128.51,128.42,6.5284]
[1725806881851,7.78005344,128.51,128.4,20.0]
[1725806881852,6.3913,128.48,128.41,15.8452]
[1725806882167,1.55485344,128.47,128.41,15.8452]
[1725806882780,6.3913,128.48,128.41,15.8452]
[1725806882781,7.94615344,128.48,128.41,15.8452]
[1725806883765,45.0,128.47,128.41,15.8452]
[1725806884786,1.55485344,128.46,128.41,15.8452]
[1725806884958,1.55485344,128.45,128.41,15.8452]
[1725806885382,45.0,128.47,128.41,15.8452]
[1725806885383,46.55485344,128.47,128.41,15.8452]
[1725806887483,1.55485344,128.47,128.41,15.8452]
[1725806888802,52.78225344,128.47,128.38,32.19015134]
[1725806888972,52.78225344,128.47,128.4,9.81655134]
[1725806896888,6.2277,128.46,128.39,20.0]
[1725806897190,1.55485344,128.45,128.39,20.0]
[1725806897789,1.55485344,128.45,128.38,15.8452]
[1725806898006,6.2291,128.43,128.38,15.8452]
[1725806898298,69.97485344,128.42,128.32,25.77845134]
[1725806898963,6.2301,128.41,128.32,25.77845134]
[1725806899101,52.78445344,128.42,128.34,9.81655134]
[1725806900471,51.2296,128.42,128.34,9.81655134]
[1725806900673,51.2296,128.42,128.32,15.9619]
[1725806900871,51.2296,128.42,128.35,9.81655134]
[1725806902272,52.78445344,128.42,128.35,9.81655134]
[1725806902881,51.2296,128.42,128.35,9.81655134]
[1725806903077,45.0,128.42,128.35,9.81655134]
[1725806904597,1.55485344,128.41,128.35,9.81655134]
[1725806905093,7.93235344,128.43,128.35,9.81655134]
[1725806905302,1.55485344,128.42,128.35,9.81655134]
[1725806908088,16.4762,128.44,128.37,9.81655134]
[1725806908337,7.78305344,128.45,128.37,25.77845134]
[1725806908606,45.0,128.44,128.37,25.77845134]
[1725806909401,12.6051,128.46,128.37,25.77845134]
[1725806910805,45.0,128.45,128.37,25.77845134]
[1725806911815,6.3775,128.46,128.39,9.81655134]
[1725806914006,1.55485344,128.45,128.39,9.81655134]
[1725806914199,1.55485344,128.46,128.39,16.22565134]
[1725806914710,28.06148173,128.48,128.39,16.22565134]
[1725806915337,6.2272,128.47,128.39,16.22565134]
[1725806915370,1.55485344,128.46,128.39,16.22565134]
[1725806915599,1.55485344,128.45,128.39,16.22565134]
[1725806918200,45.0,128.46,128.39,16.22565134]
[1725806919498,20.27992829,128.48,128.41,9.81655134]
[1725806920202,21.83478173,128.48,128.41,9.81655134]
[1725806920989,45.0,128.47,128.41,9.81655134]
[1725806921221,1.55485344,128.46,128.41,9.81655134]
[1725806921453,1.55485344,128.45,128.4,15.9041]
[1725806921619,1.55485344,128.46,128.4,15.9041]
[1725806922721,1.55485344,128.45,128.4,15.9041]
[1725806922916,1.55485344,128.46,128.4,15.9041]
[1725806923615,1.55485344,128.45,128.4,15.9041]
[1725806923820,69.97485344,128.47,128.4,15.9041]
[1725806924194,45.0,128.47,128.4,15.9041]
[1725806924603,1.55485344,128.46,128.4,15.9041]
[1725806925315,45.0,128.47,128.4,15.9041]
[1725806926217,1.55485344,128.46,128.4,15.9041]
[1725806926530,1.55485344,128.45,128.4,15.9041]
[1725806927021,1.55485344,128.46,128.4,15.9041]
[1725806927601,1.55485344,128.45,128.4,15.9041]
[1725806928706,1.55485344,128.46,128.4,15.9041]
[1725806929702,1.55485344,128.45,128.4,15.9041]
[1725806931385,1.05485344,128.45,128.4,15.9041]
[1725806937723,1.05485344,128.46,128.4,15.9041]
[1725806937942,45.0,128.47,128.4,25.72065134]
[1725806940034,1.05485344,128.46,128.4,15.9041]
[1725806940224,1.05485344,128.45,128.4,15.9041]
[1725806940624,1.05485344,128.46,128.4,15.9041]
[1725806941653,1.05485344,128.45,128.4,15.9041]
[1725806941938,46.05485344,128.45,128.4,15.9041]
[1725806943534,75.70295344,128.45,128.37,16.0614]
[1725806943827,29.6486,128.44,128.37,16.0614]
[1725806944029,46.05485344,128.43,128.37,16.0614]
[1725806944223,1.05485344,128.42,128.37,16.0614]
[1725806944945,46.05485344,128.43,128.37,16.0614]
[1725806945441,1.05485344,128.42,128.37,16.0614]
[1725806947221,75.70435344,128.43,128.37,16.0614]
[1725806947544,69.47485344,128.43,128.37,16.0614]
[1725806947723,1.05485344,128.42,128.37,16.0614]
[1725806947924,23.42,128.43,128.37,16.0614]
[1725806948120,1.05485344,128.42,128.37,16.0614]
[1725806948340,1.05485344,128.41,128.37,16.0614]
[1725806949326,1.05485344,128.43,128.37,16.0614]
[1725806949538,1.05485344,128.42,128.37,16.0614]
[1725806951134,69.47485344,128.43,128.37,16.0614]
[1725806952012,75.70395344,128.43,128.37,16.0614]
[1725806952016,1.05485344,128.42,128.37,16.0614]
[1725806952250,75.70395344,128.43,128.37,16.0614]
[1725806953369,74.6491,128.43,128.37,16.0614]
[1725806955844,1.05485344,128.42,128.37,16.0614]
[1725806956025,75.70395344,128.43,128.37,16.0614]
[1725806956330,7.28435344,128.42,128.37,16.0614]
[1725806956455,45.0,128.41,128.37,16.0614]
[1725806957138,45.0,128.42,128.37,16.0614]
[1725806958341,45.0,128.43,128.37,16.0614]
[1725806963754,1.05485344,128.42,128.37,16.0614]
[1725806965648,45.0,128.43,128.38,9.81655134]
[1725806965862,45.0,128.44,128.38,9.81655134]
[1725806966426,45.0,128.45,128.38,9.81655134]
[1725806966924,46.05485344,128.45,128.38,9.81655134]
[1725806967128,45.0,128.45,128.38,9.81655134]
[1725806968747,46.05485344,128.45,128.38,9.81655134]
[1725806979245,45.0,128.45,128.38,9.81655134]
[1725806979444,46.05485344,128.45,128.38,9.81655134]
[1725806980262,45.0,128.45,128.38,9.81655134]
[1725806984655,45.0,128.45,128.39,15.4361]
[1725806984859,45.0,128.45,128.4,6.475]
[1725806987257,1.05485344,128.45,128.4,6.475]
[1725806988061,30.70325344,128.45,128.4,6.475]
[1725806988659,30.70325344,128.45,128.39,15.4361]
[1725806988660,23.42,128.44,128.39,15.4361]
[1725806988753,69.47485344,128.43,128.39,15.4361]
[1725806989073,1.05485344,128.42,128.39,15.4361]
[1725806989964,69.47485344,128.43,128.39,15.4361]
[1725806990975,75.70415344,128.43,128.39,15.4361]
[1725806991153,74.6493,128.43,128.39,15.4361]
[1725806998440,68.42,128.43,128.39,15.4361]
[1725806998648,1.05485344,128.42,128.39,15.4361]
[1725807000771,69.47485344,128.43,128.39,15.4361]
[1725807002173,1.05485344,128.42,128.39,15.4361]
[1725807004849,68.42,128.43,128.39,15.4361]
[1725807009588,45.0,128.43,128.39,15.4361]
[1725807010173,68.42,128.44,128.39,15.4361]
[1725807010770,29.6477,128.46,128.39,15.4361]
[1725807011655,23.42,128.46,128.39,15.4361]
[1725807012370,69.47485344,128.45,128.39,15.4361]
[1725807014039,46.05485344,128.45,128.39,25.25265134]
[1725807014235,29.82324923,128.48,128.41,26.34355134]
[1725807014386,29.82324923,128.48,128.44,6.0685]
[1725807014387,21.86160107,128.46,128.44,6.0685]
[1725807014980,29.82324923,128.48,128.44,6.0685]
[1725807014981,29.82324923,128.48,128.45,16.527]
[1725807015168,29.82324923,128.48,128.38,16.527]
[1725807015169,23.42,128.47,128.38,16.527]
[1725807015364,23.42,128.45,128.38,16.527]
[1725807015578,30.70355344,128.44,128.38,16.527]
[1725807015791,34.06433058,128.43,128.38,16.527]
[1725807016294,46.05485344,128.42,128.38,16.527]
[1725807024301,45.0,128.42,128.38,16.527]
[1725807024494,45.0,128.43,128.38,16.527]
[1725807024694,1.05485344,128.42,128.38,16.527]
[1725807025597,46.05485344,128.43,128.38,16.527]
[1725807025992,45.0,128.43,128.38,16.527]
[1725807026577,24.47485344,128.46,128.38,26.34355134]
[1725807027380,1.05485344,128.45,128.38,26.34355134]
[1725807028287,46.05485344,128.45,128.38,26.34355134]
[1725807031802,23.42,128.43,128.38,16.527]
[1725807032099,46.05485344,128.42,128.38,16.527]
[1725807034308,69.47485344,128.42,128.38,16.527]
[1725807034613,69.47485344,128.42,128.31,22.0806]
[1725807034614,23.42,128.39,128.31,22.0806]
[1725807034912,69.47485344,128.38,128.31,22.0806]
[1725807035302,75.70645344,128.38,128.31,22.0806]
[1725807035888,1.05485344,128.37,128.31,22.0806]
[1725807037288,1.05485344,128.36,128.31,22.0806]
[1725807038609,1.05485344,128.37,128.31,22.0806]
[1725807042775,69.47485344,128.38,128.31,22.0806]
[1725807042987,1.05485344,128.36,128.31,22.0806]
[1725807043126,1.05485344,128.35,128.31,22.0806]
[1725807044210,1.05485344,128.37,128.31,22.0806]
[1725807052544,45.0,128.38,128.31,31.89715134]
[1725807052829,1.05485344,128.4,128.33,9.81655134]
[1725807052995,1.05485344,128.42,128.35,6.5482]
[1725807053200,1.05485344,128.42,128.35,16.36475134]
[1725807053726,1.05485344,128.43,128.36,15.4473]
[1725807055015,1.05485344,128.42,128.36,15.4473]
[1725807055205,46.05485344,128.42,128.36,15.4473]
[1725807055833,56.69918402,128.42,128.36,15.4473]
[1725807056420,80.11918402,128.42,128.36,15.4473]
[1725807063609,23.42,128.4,128.36,15.4473]
[1725807063847,23.42,128.38,128.36,15.4473]
[1725807064015,46.05485344,128.37,128.36,15.4473]
[1725807064231,45.0,128.37,128.36,15.4473]
[1725807065201,68.42,128.37,128.36,15.4473]
[1725807066307,45.0,128.37,128.36,15.4473]
[1725807068633,1.05485344,128.39,128.36,15.4473]
[1725807068831,23.42,128.41,128.36,15.4473]
[1725807069038,11.69918402,128.44,128.37,6.5016]
[1725807069218,17.92778402,128.44,128.37,6.5016]
[1725807069534,23.42,128.43,128.37,6.5016]
[1725807069841,1.05485344,128.42,128.37,6.5016]
[1725807071618,46.05485344,128.42,128.37,6.5016]
[1725807075017,69.47485344,128.42,128.37,6.5016]
[1725807075414,23.42,128.4,128.36,15.4473]
[1725807075538,46.05485344,128.39,128.36,15.4473]
[1725807076342,69.47485344,128.39,128.36,15.4473]
[1725807076546,68.42,128.39,128.36,15.4473]
[1725807076924,45.0,128.39,128.36,15.4473]
[1725807077135,46.05485344,128.39,128.36,15.4473]
[1725807079753,45.0,128.38,128.36,15.4473]
[1725807080130,46.05485344,128.38,128.36,15.4473]
[1725807080324,45.0,128.38,128.36,15.4473]
[1725807081329,24.47485344,128.41,128.36,15.4473]
[1725807081751,68.42,128.4,128.36,15.4473]
[1725807081926,1.05485344,128.39,128.36,15.4473]
[1725807082346,68.42,128.4,128.36,15.4473]
[1725807084866,1.05485344,128.39,128.36,15.4473]
[1725807085176,23.42,128.38,128.34,6.3643]
[1725807085342,46.05485344,128.37,128.34,6.3643]
[1725807085662,46.05485344,128.37,128.33,15.7153]
[1725807086376,45.0,128.36,128.33,15.7153]
[1725807086667,1.05485344,128.35,128.33,15.7153]
[1725807087448,1.05485344,128.37,128.33,15.7153]
[1725807099672,23.42,128.36,128.33,15.7153]
[1725807099859,7.28685344,128.37,128.31,6.6061]
[1725807099860,69.47485344,128.35,128.31,6.6061]
[1725807100772,45.0,128.35,128.31,6.6061]
[1725807100970,45.0,128.36,128.31,6.6061]
[1725807101558,1.05485344,128.35,128.31,6.6061]
[1725807107067,45.0,128.36,128.31,6.6061]
[1725807107288,29.651,128.39,128.31,6.6061]
[1725807107494,72.91162803,128.41,128.33,15.6364]
[1725807107675,38.84729745,128.41,128.35,22.2885]
[1725807107870,38.84729745,128.41,128.36,9.81655134]
[1725807108490,1.05485344,128.44,128.36,9.81655134]
[1725807110179,46.05485344,128.44,128.36,9.81655134]
[1725807110772,69.47485344,128.44,128.36,9.81655134]
[1725807111868,46.05485344,128.44,128.36,9.81655134]
[1725807112067,46.05485344,128.44,128.37,15.6364]
[1725807112391,69.47485344,128.44,128.37,15.6364]
[1725807112592,46.05485344,128.44,128.37,15.6364]
[1725807113127,69.47485344,128.44,128.37,15.6364]
[1725807114790,46.05485344,128.44,128.38,9.81655134]